{"text_format":"3","workbook":"xlsx","n_sheets":1,"sheets":["Списък с наличности"],"not_rendered":{"images":1,"defined_names":3},"read":"whole","date_system":"1900"}

{"sheet":"Списък с наличности","index":0,"n_rows":28,"n_cols":13,"rows_kept":28}
[{"$nulls":12}," "]
[{"$nulls":10},"Осветяване на артикулите за повторна поръчка?","Да"]
[null,"За повторна поръчка","ИД на артикул","Име","Описание","Единична цена","Количество на склад","Стойност на складовите наличности","Ниво на повторна поръчка","Време в дни за повторната поръчка","Количество на повторната поръчка","Прекратени?"]
[null,{"$f":"IFERROR((Inventory_List_Table[[#This Row],[Количество на склад]]<=Inventory_List_Table[[#This Row],[Ниво на повторна поръчка]])*(Inventory_List_Table[[#This Row],[Прекратени?]]=\"\")*valHighlight,0)","v":1},"IN0001","Артикул 1","Описание 1",{"v":51,"d":"51.00 лв."},25,{"$f":"Inventory_List_Table[[#This Row],[Единична цена]]*Inventory_List_Table[[#This Row],[Количество на склад]]","v":{"v":1275,"d":"1,275.00 лв."}},29,13,50]
[null,{"$f":"IFERROR((Inventory_List_Table[[#This Row],[Количество на склад]]<=Inventory_List_Table[[#This Row],[Ниво на повторна поръчка]])*(Inventory_List_Table[[#This Row],[Прекратени?]]=\"\")*valHighlight,0)","v":1},"IN0002","Артикул 2","Описание 2",{"v":93,"d":"93.00 лв."},132,{"$f":"Inventory_List_Table[[#This Row],[Единична цена]]*Inventory_List_Table[[#This Row],[Количество на склад]]","v":{"v":12276,"d":"12,276.00 лв."}},231,4,50]
[null,{"$f":"IFERROR((Inventory_List_Table[[#This Row],[Количество на склад]]<=Inventory_List_Table[[#This Row],[Ниво на повторна поръчка]])*(Inventory_List_Table[[#This Row],[Прекратени?]]=\"\")*valHighlight,0)","v":0},"IN0003","Артикул 3","Описание 3",{"v":57,"d":"57.00 лв."},151,{"$f":"Inventory_List_Table[[#This Row],[Единична цена]]*Inventory_List_Table[[#This Row],[Количество на склад]]","v":{"v":8607,"d":"8,607.00 лв."}},114,11,150]
[null,{"$f":"IFERROR((Inventory_List_Table[[#This Row],[Количество на склад]]<=Inventory_List_Table[[#This Row],[Ниво на повторна поръчка]])*(Inventory_List_Table[[#This Row],[Прекратени?]]=\"\")*valHighlight,0)","v":0},"IN0004","Артикул 4","Описание 4",{"v":19,"d":"19.00 лв."},186,{"$f":"Inventory_List_Table[[#This Row],[Единична цена]]*Inventory_List_Table[[#This Row],[Количество на склад]]","v":{"v":3534,"d":"3,534.00 лв."}},158,6,50]
[null,{"$f":"IFERROR((Inventory_List_Table[[#This Row],[Количество на склад]]<=Inventory_List_Table[[#This Row],[Ниво на повторна поръчка]])*(Inventory_List_Table[[#This Row],[Прекратени?]]=\"\")*valHighlight,0)","v":0},"IN0005","Артикул 5","Описание 5",{"v":75,"d":"75.00 лв."},62,{"$f":"Inventory_List_Table[[#This Row],[Единична цена]]*Inventory_List_Table[[#This Row],[Количество на склад]]","v":{"v":4650,"d":"4,650.00 лв."}},39,12,50]
[null,{"$f":"IFERROR((Inventory_List_Table[[#This Row],[Количество на склад]]<=Inventory_List_Table[[#This Row],[Ниво на повторна поръчка]])*(Inventory_List_Table[[#This Row],[Прекратени?]]=\"\")*valHighlight,0)","v":1},"IN0006","Артикул 6","Описание 6",{"v":11,"d":"11.00 лв."},5,{"$f":"Inventory_List_Table[[#This Row],[Единична цена]]*Inventory_List_Table[[#This Row],[Количество на склад]]","v":{"v":55,"d":"55.00 лв."}},9,13,150]
[null,{"$f":"IFERROR((Inventory_List_Table[[#This Row],[Количество на склад]]<=Inventory_List_Table[[#This Row],[Ниво на повторна поръчка]])*(Inventory_List_Table[[#This Row],[Прекратени?]]=\"\")*valHighlight,0)","v":0},"IN0007","Артикул 7","Описание 7",{"v":56,"d":"56.00 лв."},58,{"$f":"Inventory_List_Table[[#This Row],[Единична цена]]*Inventory_List_Table[[#This Row],[Количество на склад]]","v":{"v":3248,"d":"3,248.00 лв."}},109,7,100,"Да"]
[null,{"$f":"IFERROR((Inventory_List_Table[[#This Row],[Количество на склад]]<=Inventory_List_Table[[#This Row],[Ниво на повторна поръчка]])*(Inventory_List_Table[[#This Row],[Прекратени?]]=\"\")*valHighlight,0)","v":1},"IN0008","Артикул 8","Описание 8",{"v":38,"d":"38.00 лв."},101,{"$f":"Inventory_List_Table[[#This Row],[Единична цена]]*Inventory_List_Table[[#This Row],[Количество на склад]]","v":{"v":3838,"d":"3,838.00 лв."}},162,3,100]
[null,{"$f":"IFERROR((Inventory_List_Table[[#This Row],[Количество на склад]]<=Inventory_List_Table[[#This Row],[Ниво на повторна поръчка]])*(Inventory_List_Table[[#This Row],[Прекратени?]]=\"\")*valHighlight,0)","v":0},"IN0009","Артикул 9","Описание 9",{"v":59,"d":"59.00 лв."},122,{"$f":"Inventory_List_Table[[#This Row],[Единична цена]]*Inventory_List_Table[[#This Row],[Количество на склад]]","v":{"v":7198,"d":"7,198.00 лв."}},82,3,150]
[null,{"$f":"IFERROR((Inventory_List_Table[[#This Row],[Количество на склад]]<=Inventory_List_Table[[#This Row],[Ниво на повторна поръчка]])*(Inventory_List_Table[[#This Row],[Прекратени?]]=\"\")*valHighlight,0)","v":1},"IN0010","Артикул 10","Описание 10",{"v":50,"d":"50.00 лв."},175,{"$f":"Inventory_List_Table[[#This Row],[Единична цена]]*Inventory_List_Table[[#This Row],[Количество на склад]]","v":{"v":8750,"d":"8,750.00 лв."}},283,8,150]
[null,{"$f":"IFERROR((Inventory_List_Table[[#This Row],[Количество на склад]]<=Inventory_List_Table[[#This Row],[Ниво на повторна поръчка]])*(Inventory_List_Table[[#This Row],[Прекратени?]]=\"\")*valHighlight,0)","v":1},"IN0011","Артикул 11","Описание 11",{"v":59,"d":"59.00 лв."},176,{"$f":"Inventory_List_Table[[#This Row],[Единична цена]]*Inventory_List_Table[[#This Row],[Количество на склад]]","v":{"v":10384,"d":"10,384.00 лв."}},229,1,100]
[null,{"$f":"IFERROR((Inventory_List_Table[[#This Row],[Количество на склад]]<=Inventory_List_Table[[#This Row],[Ниво на повторна поръчка]])*(Inventory_List_Table[[#This Row],[Прекратени?]]=\"\")*valHighlight,0)","v":1},"IN0012","Артикул 12","Описание 12",{"v":18,"d":"18.00 лв."},22,{"$f":"Inventory_List_Table[[#This Row],[Единична цена]]*Inventory_List_Table[[#This Row],[Количество на склад]]","v":{"v":396,"d":"396.00 лв."}},36,12,50]
[null,{"$f":"IFERROR((Inventory_List_Table[[#This Row],[Количество на склад]]<=Inventory_List_Table[[#This Row],[Ниво на повторна поръчка]])*(Inventory_List_Table[[#This Row],[Прекратени?]]=\"\")*valHighlight,0)","v":1},"IN0013","Артикул 13","Описание 13",{"v":26,"d":"26.00 лв."},72,{"$f":"Inventory_List_Table[[#This Row],[Единична цена]]*Inventory_List_Table[[#This Row],[Количество на склад]]","v":{"v":1872,"d":"1,872.00 лв."}},102,9,100]
[null,{"$f":"IFERROR((Inventory_List_Table[[#This Row],[Количество на склад]]<=Inventory_List_Table[[#This Row],[Ниво на повторна поръчка]])*(Inventory_List_Table[[#This Row],[Прекратени?]]=\"\")*valHighlight,0)","v":1},"IN0014","Артикул 14","Описание 14",{"v":42,"d":"42.00 лв."},62,{"$f":"Inventory_List_Table[[#This Row],[Единична цена]]*Inventory_List_Table[[#This Row],[Количество на склад]]","v":{"v":2604,"d":"2,604.00 лв."}},83,2,100]
[null,{"$f":"IFERROR((Inventory_List_Table[[#This Row],[Количество на склад]]<=Inventory_List_Table[[#This Row],[Ниво на повторна поръчка]])*(Inventory_List_Table[[#This Row],[Прекратени?]]=\"\")*valHighlight,0)","v":0},"IN0015","Артикул 15","Описание 15",{"v":32,"d":"32.00 лв."},46,{"$f":"Inventory_List_Table[[#This Row],[Единична цена]]*Inventory_List_Table[[#This Row],[Количество на склад]]","v":{"v":1472,"d":"1,472.00 лв."}},23,15,50]
[null,{"$f":"IFERROR((Inventory_List_Table[[#This Row],[Количество на склад]]<=Inventory_List_Table[[#This Row],[Ниво на повторна поръчка]])*(Inventory_List_Table[[#This Row],[Прекратени?]]=\"\")*valHighlight,0)","v":1},"IN0016","Артикул 16","Описание 16",{"v":90,"d":"90.00 лв."},96,{"$f":"Inventory_List_Table[[#This Row],[Единична цена]]*Inventory_List_Table[[#This Row],[Количество на склад]]","v":{"v":8640,"d":"8,640.00 лв."}},180,3,50]
[null,{"$f":"IFERROR((Inventory_List_Table[[#This Row],[Количество на склад]]<=Inventory_List_Table[[#This Row],[Ниво на повторна поръчка]])*(Inventory_List_Table[[#This Row],[Прекратени?]]=\"\")*valHighlight,0)","v":0},"IN0017","Артикул 17","Описание 17",{"v":97,"d":"97.00 лв."},57,{"$f":"Inventory_List_Table[[#This Row],[Единична цена]]*Inventory_List_Table[[#This Row],[Количество на склад]]","v":{"v":5529,"d":"5,529.00 лв."}},98,12,50,"Да"]
[null,{"$f":"IFERROR((Inventory_List_Table[[#This Row],[Количество на склад]]<=Inventory_List_Table[[#This Row],[Ниво на повторна поръчка]])*(Inventory_List_Table[[#This Row],[Прекратени?]]=\"\")*valHighlight,0)","v":1},"IN0018","Артикул 18","Описание 18",{"v":12,"d":"12.00 лв."},6,{"$f":"Inventory_List_Table[[#This Row],[Единична цена]]*Inventory_List_Table[[#This Row],[Количество на склад]]","v":{"v":72,"d":"72.00 лв."}},7,13,50]
[null,{"$f":"IFERROR((Inventory_List_Table[[#This Row],[Количество на склад]]<=Inventory_List_Table[[#This Row],[Ниво на повторна поръчка]])*(Inventory_List_Table[[#This Row],[Прекратени?]]=\"\")*valHighlight,0)","v":1},"IN0019","Артикул 19","Описание 19",{"v":82,"d":"82.00 лв."},143,{"$f":"Inventory_List_Table[[#This Row],[Единична цена]]*Inventory_List_Table[[#This Row],[Количество на склад]]","v":{"v":11726,"d":"11,726.00 лв."}},164,12,150]
[null,{"$f":"IFERROR((Inventory_List_Table[[#This Row],[Количество на склад]]<=Inventory_List_Table[[#This Row],[Ниво на повторна поръчка]])*(Inventory_List_Table[[#This Row],[Прекратени?]]=\"\")*valHighlight,0)","v":0},"IN0020","Артикул 20","Описание 20",{"v":16,"d":"16.00 лв."},124,{"$f":"Inventory_List_Table[[#This Row],[Единична цена]]*Inventory_List_Table[[#This Row],[Количество на склад]]","v":{"v":1984,"d":"1,984.00 лв."}},113,14,50]
[null,{"$f":"IFERROR((Inventory_List_Table[[#This Row],[Количество на склад]]<=Inventory_List_Table[[#This Row],[Ниво на повторна поръчка]])*(Inventory_List_Table[[#This Row],[Прекратени?]]=\"\")*valHighlight,0)","v":0},"IN0021","Артикул 21","Описание 21",{"v":19,"d":"19.00 лв."},112,{"$f":"Inventory_List_Table[[#This Row],[Единична цена]]*Inventory_List_Table[[#This Row],[Количество на склад]]","v":{"v":2128,"d":"2,128.00 лв."}},75,11,50]
[null,{"$f":"IFERROR((Inventory_List_Table[[#This Row],[Количество на склад]]<=Inventory_List_Table[[#This Row],[Ниво на повторна поръчка]])*(Inventory_List_Table[[#This Row],[Прекратени?]]=\"\")*valHighlight,0)","v":0},"IN0022","Артикул 22","Описание 22",{"v":24,"d":"24.00 лв."},182,{"$f":"Inventory_List_Table[[#This Row],[Единична цена]]*Inventory_List_Table[[#This Row],[Количество на склад]]","v":{"v":4368,"d":"4,368.00 лв."}},132,15,150]
[null,{"$f":"IFERROR((Inventory_List_Table[[#This Row],[Количество на склад]]<=Inventory_List_Table[[#This Row],[Ниво на повторна поръчка]])*(Inventory_List_Table[[#This Row],[Прекратени?]]=\"\")*valHighlight,0)","v":0},"IN0023","Артикул 23","Описание 23",{"v":29,"d":"29.00 лв."},106,{"$f":"Inventory_List_Table[[#This Row],[Единична цена]]*Inventory_List_Table[[#This Row],[Количество на склад]]","v":{"v":3074,"d":"3,074.00 лв."}},142,1,150,"Да"]
[null,{"$f":"IFERROR((Inventory_List_Table[[#This Row],[Количество на склад]]<=Inventory_List_Table[[#This Row],[Ниво на повторна поръчка]])*(Inventory_List_Table[[#This Row],[Прекратени?]]=\"\")*valHighlight,0)","v":0},"IN0024","Артикул 24","Описание 24",{"v":75,"d":"75.00 лв."},173,{"$f":"Inventory_List_Table[[#This Row],[Единична цена]]*Inventory_List_Table[[#This Row],[Количество на склад]]","v":{"v":12975,"d":"12,975.00 лв."}},127,9,100]
[null,{"$f":"IFERROR((Inventory_List_Table[[#This Row],[Количество на склад]]<=Inventory_List_Table[[#This Row],[Ниво на повторна поръчка]])*(Inventory_List_Table[[#This Row],[Прекратени?]]=\"\")*valHighlight,0)","v":0},"IN0025","Артикул 25","Описание 25",{"v":14,"d":"14.00 лв."},28,{"$f":"Inventory_List_Table[[#This Row],[Единична цена]]*Inventory_List_Table[[#This Row],[Количество на склад]]","v":{"v":392,"d":"392.00 лв."}},21,8,50]